fUSD/lending_fUSD_20241104
["ID","MTS","AMOUNT","RATE_DAILY","PERIOD"]
[341307189,1730748683460,-500.0,0.00033698,2]
[341307190,1730748683469,-500.0,0.00033698,2]
[341307191,1730748683478,-500.0,0.00033698,2]
[341307192,1730748683488,-500.0,0.00033698,2]
[341307193,1730748683497,-500.0,0.00033698,2]
[341307194,1730748683507,-508.95727014,0.00033698,2]
[341307195,1730748683516,-500.0,0.00033698,2]
[341307196,1730748683526,-986.230612,0.00033698,2]
[341307197,1730748683535,-500.0,0.00033698,2]
[341307198,1730748683545,-600.33452,0.00033698,2]
[341307199,1730748683554,-500.0,0.00033698,2]
[341307200,1730748683564,-500.0,0.00033698,2]
[341307201,1730748683573,-150.0,0.00033698,2]
[341307202,1730748683583,-500.0,0.00033698,2]
[341307203,1730748683593,-500.0,0.00033698,2]
[341307204,1730748683603,-500.0,0.00033698,2]
[341307205,1730748683612,-621.86447432,0.00033698,2]
[341307206,1730748683621,-605.12643493,0.00033698,2]
[341307207,1730748683631,-500.0,0.00033698,2]
[341307208,1730748683640,-500.0,0.00033698,2]
[341307209,1730748683650,-500.0,0.00033698,2]
[341307210,1730748683659,-500.0,0.00033698,2]
[341307211,1730748683668,-500.0,0.00033698,2]
[341307212,1730748683678,-459.8,0.00033698,2]
[341307213,1730748683687,-500.0,0.00033698,2]
[341307214,1730748683697,-411.36941677,0.00033698,2]
[341307215,1730748683706,-500.0,0.00033698,2]
[341307216,1730748683715,-500.0,0.00033698,2]
[341307217,1730748683724,-500.0,0.00033698,2]
[341307218,1730748683734,-500.0,0.00033698,2]
[341307219,1730748683743,-674.64,0.00033698,2]
[341307220,1730748683752,-500.0,0.00033698,2]
[341307221,1730748683762,-500.0,0.00033698,2]
[341307222,1730748683771,-500.0,0.00033698,2]
[341307223,1730748683780,-500.0,0.00033698,2]
[341307224,1730748683790,-500.0,0.00033698,2]
[341307225,1730748683800,-500.0,0.00033698,2]
[341307226,1730748683809,-500.0,0.00033698,2]
[341307227,1730748683819,-500.0,0.00033698,2]
[341307228,1730748683828,-204.06125217,0.00033698,2]
[341307229,1730748683838,-500.0,0.00033698,2]
[341307230,1730748683848,-500.0,0.00033698,2]
[341307231,1730748683858,-500.0,0.00033698,2]
[341307232,1730748683867,-596.02108856,0.00033698,2]
[341307233,1730748683876,-500.0,0.00033698,2]
[341307234,1730748683886,-500.0,0.00033698,2]
[341307235,1730748683896,-500.0,0.00033698,2]
[341307236,1730748683905,-500.0,0.00033698,2]
[341307237,1730748683915,-500.0,0.00033698,2]
[341307238,1730748683925,-500.0,0.00033698,2]
[341307239,1730748683934,-500.0,0.00033698,2]
[341307240,1730748683944,-500.0,0.00033698,2]
[341307241,1730748683954,-500.0,0.00033698,2]
[341307242,1730748683963,-131.32387493,0.00033698,2]
[341307243,1730748684291,-506.7,0.00032566,10]
[341307244,1730748684300,-124.14482896,0.00032873,5]
[341307245,1730748684312,-375.85517104,0.00032873,5]
[341307246,1730748684321,-1439.324757,0.00032876,7]
[341307247,1730748684331,-158.59790301,0.00032876,7]
[341307248,1730748684343,-1280.72685399,0.00032876,7]
[341307249,1730748684353,-500.0,0.00032876,2]
[341307250,1730748684366,-500.0,0.00032876,2]
[341307251,1730748684376,-1439.324757,0.000329,7]
[341307252,1730748684386,-483.49375432,0.0003315,2]
[341307253,1730748684398,-16.50624568,0.0003315,2]
[341307254,1730748684408,-500.0,0.0003315,2]
[341307255,1730748684418,-500.0,0.00033424,2]
[341307256,1730748684428,-318.90265029,0.00033698,2]
[341307257,1730748684437,-500.0,0.00033698,2]
[341307258,1730748684446,-348.96878409,0.00033698,2]
[341307259,1730748684458,-151.03121591,0.00033698,2]
[341307260,1730748684468,-501.64290393,0.00033698,2]
[341307261,1730748684618,-500.0,0.00033698,2]
[341307262,1730748684629,-256.14762198,0.00033698,2]
[341307263,1730748684640,-243.85237802,0.00033698,2]
[341307264,1730748684650,-10.20901247,0.00033698,2]
[341307265,1730748684661,-453.53766333,0.00033698,2]
[341307266,1730748684673,-36.2533242,0.00033698,2]
[341307267,1730748684683,-500.0,0.00033698,2]
[341307268,1730748684692,-500.0,0.00033698,2]
[341307269,1730748684701,-500.0,0.00033698,2]
[341307270,1730748684711,-500.0,0.00033698,2]
[341307271,1730748684720,-156.11547939,0.00033698,2]
[341307272,1730748684732,-343.88452061,0.00033698,2]
[341307273,1730748684741,-500.0,0.00033698,2]
[341307274,1730748684750,-500.0,0.00033698,2]
[341307275,1730748684759,-500.0,0.00033698,2]
[341307276,1730748684769,-500.0,0.00033698,2]
[341307277,1730748684778,-573.76,0.00033698,2]
[341307278,1730748684788,-500.0,0.00033698,2]
[341307279,1730748684797,-500.0,0.00033698,2]
[341307280,1730748684807,-500.0,0.00033698,2]
[341307281,1730748684816,-500.0,0.00033698,2]
[341307282,1730748684825,-500.0,0.00033698,2]
[341307283,1730748684835,-500.0,0.00033698,2]
[341307284,1730748684846,-729.25143207,0.00033698,2]
[341307285,1730748684860,-270.74856793,0.00033698,2]
[341307286,1730748684869,-500.0,0.00033698,2]
[341307287,1730748684878,-450.97143207,0.00033698,2]
[341307288,1730748684889,-49.02856793,0.00033698,2]
[341307289,1730748684898,-407.77148942,0.00033698,2]
[341307290,1730748684910,-92.22851058,0.00033698,2]
[341307291,1730748684920,-232.24571186,0.00033698,2]
[341307292,1730748684931,-267.75428814,0.00033698,2]
[341307293,1730748684942,-165.12005804,0.00033698,2]
[341307294,1730748684954,-334.87994196,0.00033698,2]
[341307295,1730748684963,-570.39,0.00033698,2]
[341307296,1730748684973,-500.0,0.00033698,2]
[341307297,1730748684982,-500.0,0.00033698,2]
[341307298,1730748684992,-633.27645555,0.00033698,2]
[341307299,1730748685001,-500.0,0.00033698,2]
[341307300,1730748685010,-500.0,0.00033698,2]
[341307301,1730748685019,-500.0,0.00033698,2]
[341307302,1730748685029,-500.0,0.00033698,2]
[341307303,1730748685039,-461.45360249,0.00033698,2]
[341307304,1730748685092,-38.54639751,0.00033698,2]
[341307305,1730748685103,-500.0,0.00033698,2]
[341307306,1730748685112,-500.0,0.00033698,2]
[341307307,1730748685123,-500.0,0.00033698,2]
[341307308,1730748685132,-500.0,0.00033698,2]
[341307309,1730748685144,-150.99289839,0.00033698,2]
[341307310,1730748685155,-349.00710161,0.00033698,2]
[341307311,1730748685165,-500.0,0.00033698,2]
[341307312,1730748685175,-500.0,0.00033698,2]
[341307313,1730748685186,-500.0,0.00033698,2]
[341307314,1730748685196,-500.0,0.00033698,2]
[341307315,1730748685205,-99.68333258,0.00033698,2]
[341307316,1730748685218,-391.93289416,0.00033698,2]
[341307317,1730748685229,-87.62098373,0.00033698,2]
[341307318,1730748685239,-500.0,0.00033698,2]
[341307319,1730748685248,-821.71,0.00033698,2]
[341307320,1730748685258,-339.65253107,0.00033698,2]
[341307321,1730748685274,-1439.324757,0.0003315,7]
[341307322,1730748685284,-160.34746893,0.00033698,2]
[341307323,1730748685294,-76.4710244,0.00033698,2]
[341307324,1730748685306,-423.5289756,0.00033698,2]
[341307325,1730748685316,-500.0,0.00033698,2]
[341307326,1730748685326,-150.08194341,0.00033698,2]
[341307327,1730748685338,-349.91805659,0.00033698,2]
[341307328,1730748685349,-500.0,0.00033698,2]
[341307329,1730748685358,-455.31039617,0.00033698,2]
[341307330,1730748685368,-500.0,0.00033698,2]
[341307331,1730748685378,-500.0,0.00033698,2]
[341307332,1730748685387,-496.61078,0.00033698,2]
[341307333,1730748685397,-202.6872324,0.00033698,2]
[341307334,1730748685406,-500.0,0.00033698,2]
[341307335,1730748685416,-500.0,0.00033698,2]
[341307336,1730748685427,-500.0,0.00033698,2]
[341307337,1730748685436,-500.0,0.00033698,2]
[341307338,1730748685446,-500.0,0.00033698,2]
[341307339,1730748685455,-575.52,0.00033698,2]
[341307340,1730748685465,-851.11,0.00033698,2]
[341307341,1730748685476,-4828.39865974,0.00033698,2]
[341307342,1730748685488,-4506.06258621,0.00033698,2]
[341307343,1730748685500,-17134.57875405,0.00033698,2]
[341307344,1730748685509,-562.35891796,0.00033698,2]
[341307345,1730748685519,-500.0,0.00033698,2]
[341307346,1730748685529,-556.64,0.00033698,2]
[341307347,1730748685538,-2276.49,0.00033698,2]
[341307348,1730748685547,-500.0,0.00033698,2]
[341307349,1730748685557,-524.99,0.00033698,2]
[341307350,1730748685566,-500.0,0.00033698,2]
[341307351,1730748685575,-549.43,0.00033698,2]
[341307352,1730748685585,-500.0,0.00033698,2]
[341307353,1730748685594,-500.0,0.00033698,2]
[341307354,1730748685603,-500.0,0.00033698,2]
[341307355,1730748685612,-500.0,0.00033698,2]
[341307356,1730748685622,-500.0,0.00033698,2]
[341307357,1730748685631,-500.0,0.00033698,2]
[341307358,1730748685642,-500.0,0.00033698,2]
[341307359,1730748685652,-500.0,0.00033698,2]
[341307360,1730748685661,-500.0,0.00033698,2]
[341307361,1730748685671,-500.0,0.00033698,2]
[341307362,1730748685681,-2045.8,0.00033698,2]
[341307363,1730748685691,-500.0,0.00033698,2]
[341307364,1730748685700,-500.0,0.00033698,2]
[341307365,1730748685710,-500.0,0.00033698,2]
[341307366,1730748685719,-500.0,0.00033698,2]
[341307367,1730748685729,-643.76894522,0.00033698,2]
[341307368,1730748685739,-582.38,0.00033698,2]
[341307369,1730748685748,-500.0,0.00033698,2]
[341307370,1730748685758,-500.0,0.00033698,2]
[341307371,1730748685767,-500.0,0.00033698,2]
[341307372,1730748685776,-436.96388336,0.00033698,2]
[341307373,1730748685786,-500.0,0.00033698,2]
[341307374,1730748685795,-500.0,0.00033698,2]
[341307375,1730748685805,-500.0,0.00033698,2]
[341307376,1730748685814,-500.0,0.00033698,2]
[341307377,1730748685824,-500.0,0.00033698,2]
[341307378,1730748685833,-500.0,0.00033698,2]
[341307379,1730748685842,-500.0,0.00033698,2]
[341307380,1730748685851,-500.0,0.00033698,2]
[341307381,1730748685861,-500.0,0.00033698,2]
[341307382,1730748685870,-500.0,0.00033698,2]
[341307383,1730748685880,-500.0,0.00033698,2]
[341307384,1730748685889,-500.0,0.00033698,2]
[341307385,1730748685899,-500.0,0.00033698,2]
[341307386,1730748685909,-500.0,0.00033698,2]
[341307387,1730748685919,-500.0,0.00033698,2]
[341307388,1730748685930,-500.0,0.00033698,2]
[341307389,1730748685939,-541.66,0.00033698,2]
[341307390,1730748685948,-500.0,0.00033698,2]
[341307391,1730748685958,-500.0,0.00033698,2]
[341307392,1730748685967,-500.0,0.00033698,2]
[341307393,1730748685976,-500.0,0.00033698,2]
[341307394,1730748685986,-500.0,0.00033698,2]
[341307395,1730748685996,-1741.16,0.00033698,2]
[341307396,1730748686006,-500.0,0.00033698,2]
[341307397,1730748686015,-500.0,0.00033698,2]
[341307398,1730748686025,-500.0,0.00033698,2]
[341307399,1730748686034,-500.0,0.00033698,2]
[341307400,1730748686044,-500.0,0.00033698,2]
[341307401,1730748686054,-500.0,0.00033698,2]
[341307402,1730748686063,-500.0,0.00033698,2]
[341307403,1730748686073,-500.0,0.00033698,2]
[341307404,1730748686082,-535.59,0.00033698,2]
[341307405,1730748686092,-500.0,0.00033698,2]
[341307406,1730748686102,-500.0,0.00033698,2]
[341307407,1730748686112,-500.0,0.00033698,2]
[341307408,1730748686122,-500.0,0.00033698,2]
[341307409,1730748686131,-500.0,0.00033698,2]
[341307410,1730748686140,-667.44,0.00033698,2]
[341307411,1730748686152,-500.0,0.00033698,2]
[341307412,1730748686163,-567.03,0.00033698,2]
[341307413,1730748686172,-500.0,0.00033698,2]
[341307414,1730748686180,-500.0,0.00033698,2]
[341307415,1730748686190,-500.0,0.00033698,2]
[341307416,1730748686199,-500.0,0.00033698,2]
[341307417,1730748686208,-500.0,0.00033698,2]
[341307418,1730748686218,-500.0,0.00033698,2]
[341307419,1730748686227,-500.0,0.00033698,2]
[341307420,1730748686237,-500.0,0.00033698,2]
[341307421,1730748686247,-500.0,0.00033698,2]
[341307422,1730748686257,-500.0,0.00033698,2]
[341307423,1730748686266,-500.0,0.00033698,2]
[341307424,1730748686276,-165.33,0.00033779,2]
[341307425,1730748686286,-640.0,0.00033855,120]
[341307426,1730748686295,-1446.89350454,0.00033871,2]
[341307427,1730748686305,-1500.0,0.000339,12]
[341307428,1730748686315,-209.78329005,0.00033962,2]
[341307429,1730748686324,-518.04,0.00033971,2]
[341307430,1730748686333,-450.24,0.00033972,2]
[341307431,1730748686342,-369.62,0.00033972,2]
[341307432,1730748686351,-500.0,0.00033972,2]
[341307433,1730748686361,-500.0,0.00033972,2]
[341307434,1730748686370,-306.65,0.00033972,2]
[341307435,1730748686380,-500.0,0.00033972,2]
[341307436,1730748686389,-500.0,0.00033972,2]
[341307437,1730748686398,-388.26243174,0.00033972,2]
[341307438,1730748686408,-500.0,0.00033972,2]
[341307439,1730748686418,-500.0,0.00033972,2]
[341307440,1730748686426,-500.0,0.00033972,2]
[341307441,1730748686436,-500.0,0.00033972,2]
[341307442,1730748686445,-507.03819598,0.00033972,2]
[341307443,1730748686454,-500.0,0.00033972,2]
[341307444,1730748686462,-500.0,0.00033972,2]
[341307445,1730748686471,-500.0,0.00033972,2]
[341307446,1730748686480,-500.0,0.00033972,2]
[341307447,1730748686489,-500.0,0.00033972,2]
[341307448,1730748686498,-500.0,0.00033972,2]
[341307449,1730748686507,-500.0,0.00033972,2]
[341307450,1730748686516,-500.0,0.00033972,2]
[341307451,1730748686526,-500.0,0.00033972,2]
[341307452,1730748686535,-500.0,0.00033972,2]
[341307453,1730748686544,-500.0,0.00033972,2]
[341307454,1730748686553,-320.55377731,0.00033972,2]
[341307455,1730748686562,-500.0,0.00033972,2]
[341307456,1730748686571,-500.0,0.00033972,2]
[341307457,1730748686580,-500.0,0.00033972,2]
[341307458,1730748686589,-500.0,0.00033972,2]
[341307459,1730748686598,-500.0,0.00033972,2]
[341307460,1730748686608,-500.0,0.00033972,2]
[341307461,1730748686619,-500.0,0.00033972,2]
[341307462,1730748686627,-500.0,0.00033972,2]
[341307463,1730748686637,-500.0,0.00033972,2]
[341307464,1730748686647,-500.0,0.00033972,2]
[341307465,1730748686656,-511.69313922,0.00033972,2]
[341307466,1730748686667,-500.0,0.00033972,2]
[341307467,1730748686677,-500.0,0.00033972,2]
[341307468,1730748686688,-500.0,0.00033972,2]
[341307469,1730748686700,-500.0,0.00033972,2]
[341307470,1730748686710,-500.0,0.00033972,7]
[341307471,1730748686721,-500.0,0.00033972,2]
[341307472,1730748686730,-500.0,0.00033972,2]
[341307473,1730748686740,-530.81986807,0.00033972,2]
[341307474,1730748686749,-200.151852,0.00033972,2]
[341307475,1730748686760,-508.2,0.00033972,2]
[341307476,1730748686771,-500.0,0.00033972,2]
[341307477,1730748686781,-601.36,0.00033972,2]
[341307478,1730748686791,-500.0,0.00033972,2]
[341307479,1730748686801,-500.0,0.00033972,2]
[341307480,1730748686811,-575.06364243,0.00033972,2]
[341307481,1730748686821,-500.0,0.00033972,2]
[341307482,1730748686832,-500.0,0.00033972,2]
[341307483,1730748686843,-500.0,0.00033972,2]
[341307484,1730748686851,-500.0,0.00033972,2]
[341307485,1730748686860,-500.0,0.00033972,2]
[341307486,1730748686871,-500.0,0.00033972,2]
[341307487,1730748686880,-500.0,0.00033972,2]
[341307488,1730748686891,-640.48,0.00033972,2]
[341307489,1730748686902,-500.0,0.00033972,2]
[341307490,1730748686912,-500.0,0.00033972,2]
[341307491,1730748686923,-500.0,0.00033972,2]
[341307492,1730748686933,-293.83578582,0.00033972,2]
[341307493,1730748686943,-500.0,0.00033972,2]
[341307494,1730748686953,-500.0,0.00033972,2]
[341307495,1730748686965,-500.0,0.00033972,2]
[341307496,1730748686975,-500.0,0.00033972,2]
[341307497,1730748686986,-500.0,0.00033972,2]
[341307498,1730748686996,-500.0,0.00033972,2]
[341307499,1730748687006,-500.0,0.00033972,2]
[341307500,1730748687016,-201.7246321,0.00033972,2]
[341307501,1730748687026,-500.0,0.00033972,2]
[341307502,1730748687035,-591.87462995,0.00033972,2]
[341307503,1730748687044,-500.0,0.00033972,2]
[341307504,1730748687053,-500.0,0.00033972,2]
[341307505,1730748687062,-500.0,0.00033972,2]
[341307506,1730748687071,-500.0,0.00033972,2]
[341307507,1730748687080,-500.0,0.00033972,2]
[341307508,1730748687089,-500.0,0.00033972,2]
[341307509,1730748687103,-500.0,0.00033972,2]
[341307510,1730748687112,-500.0,0.00033972,2]
[341307511,1730748687122,-500.0,0.00033972,2]
[341307512,1730748687131,-500.0,0.00033972,2]
[341307513,1730748687140,-646.79019036,0.00033972,2]
[341307514,1730748687154,-500.0,0.00033972,2]
[341307515,1730748687163,-500.0,0.00033972,2]
[341307516,1730748687173,-500.0,0.00033972,2]
[341307517,1730748687182,-500.0,0.00033972,2]
[341307518,1730748687193,-664.71,0.00033972,2]
[341307519,1730748687203,-500.0,0.00033972,2]
[341307520,1730748687212,-500.0,0.00033972,2]
[341307521,1730748687222,-500.0,0.00033972,2]
[341307522,1730748687232,-500.0,0.00033972,2]
[341307523,1730748687242,-228.32170934,0.00033972,2]
[341307524,1730748687252,-500.0,0.00033972,2]
[341307525,1730748687261,-500.0,0.00033972,2]
[341307526,1730748687270,-546.36337152,0.00033972,2]
[341307527,1730748687279,-500.0,0.00033972,2]
[341307528,1730748687288,-500.0,0.00033972,2]
[341307529,1730748687297,-500.0,0.00033972,2]
[341307530,1730748687308,-500.0,0.00033972,2]
[341307531,1730748687317,-500.0,0.00033972,2]
[341307532,1730748687327,-500.0,0.00033972,2]
[341307533,1730748687336,-544.87792428,0.00033972,2]
[341307534,1730748687349,-500.0,0.00033972,2]
[341307535,1730748687360,-559.39,0.00033972,2]
[341307536,1730748687370,-500.0,0.00033972,2]
[341307537,1730748687379,-500.0,0.00033972,2]
[341307538,1730748687388,-472.98145517,0.00033972,2]
[341307539,1730748687397,-644.37,0.00033972,2]
[341307540,1730748687407,-500.0,0.00033972,2]
[341307541,1730748687416,-566.41369938,0.00033972,2]
[341307542,1730748687426,-500.0,0.00033972,2]
[341307543,1730748687435,-500.0,0.00033972,2]
[341307544,1730748687445,-500.0,0.00033972,2]
[341307545,1730748687454,-191.42335284,0.00033972,2]
[341307546,1730748687463,-500.0,0.00033972,2]
[341307547,1730748687474,-220.43532768,0.00033972,2]
[341307548,1730748687484,-488.18025855,0.00033972,2]
[341307549,1730748687493,-500.0,0.00033972,2]
[341307550,1730748687503,-500.0,0.00033972,2]
[341307551,1730748687512,-500.0,0.00033972,2]
[341307552,1730748687522,-464.71381352,0.00033972,2]
[341307553,1730748687532,-500.0,0.00033972,2]
[341307554,1730748687542,-500.0,0.00033972,2]
[341307555,1730748687553,-500.0,0.00033972,2]
[341307556,1730748687563,-500.0,0.00033972,2]
[341307557,1730748687572,-500.0,0.00033972,2]
[341307558,1730748687583,-320.67865914,0.00033972,2]
[341307559,1730748687728,-500.0,0.00033972,2]
[341307560,1730748687738,-500.0,0.00033972,2]
[341307561,1730748687748,-473.61,0.00033972,2]
[341307562,1730748687757,-500.0,0.00033972,2]
[341307563,1730748687767,-357.42,0.00033972,2]
[341307564,1730748687776,-500.0,0.00033972,2]
[341307565,1730748687786,-500.0,0.00033972,2]
[341307566,1730748687795,-500.0,0.00033972,2]
[341307567,1730748687804,-500.0,0.00033972,2]
[341307568,1730748687814,-500.0,0.00033972,2]
[341307569,1730748687823,-500.0,0.00033972,2]
[341307570,1730748687833,-341.9430338,0.00033972,2]
[341307571,1730748687843,-500.0,0.00033972,2]
[341307572,1730748687852,-23.48195462,0.00033972,2]
[341307573,1730748687871,-476.51804538,0.00033972,2]
[341307574,1730748687880,-638.63710625,0.00033972,2]
[341307575,1730748687890,-26.44484837,0.00033972,2]
[341307576,1730748687901,-473.55515163,0.00033972,2]
[341307577,1730748687911,-500.0,0.00033972,2]
[341307578,1730748687919,-513.01,0.00033972,2]
[341307579,1730748687930,-500.0,0.00033972,2]
[341307580,1730748687939,-233.66,0.00033972,2]
[341307581,1730748687949,-527.89,0.00033972,2]
[341307582,1730748687959,-500.0,0.00033972,2]
[341307583,1730748687968,-500.0,0.00033972,2]
[341307584,1730748687979,-500.0,0.00033972,2]
[341307585,1730748687988,-500.0,0.00033972,2]
[341307586,1730748687998,-694.03,0.00033972,2]
[341307587,1730748688008,-500.0,0.00033972,2]
[341307588,1730748688018,-430.00000001,0.00033972,2]
[341307589,1730748688027,-500.0,0.00033972,2]
[341307590,1730748688036,-591.37,0.00033972,2]
[341307591,1730748688047,-507.62206022,0.00033972,2]
[341307592,1730748688056,-504.19934133,0.00033972,2]
[341307593,1730748923011,156.38,0.00015342,2]
[341307595,1730748926075,175.326,0.00010898,2]
[341307617,1730749831499,-749.9006,0.00019525,2]
[341307618,1730749831511,-377.224507,0.00019525,2]
[341307619,1730749831520,-12920.41565474,0.000207,2]
[341307620,1730749831530,-161.96074875,0.000208,2]
[341307621,1730749831541,-161.96074875,0.000209,2]
[341307622,1730749831551,-250.0,0.00021,2]
[341307623,1730749831560,-300.0,0.00023,2]
[341307624,1730749831569,-350.0,0.00025,2]
[341307625,1730749831577,-280.0,0.000253,10]
[341307626,1730749831588,-400.0,0.00027,2]
[341307627,1730749831597,-497.07,0.00027187,2]
[341307628,1730749831606,-150.0,0.00027479,2]
[341307629,1730749831618,-156.38,0.00027507,2]
[341307630,1730749831628,-391.0,0.0002783,15]
[341307631,1730749831637,-250.0,0.00028673,2]
[341307632,1730749831647,-432.19,0.00028722,2]
[341307633,1730749831656,-401.68,0.00028785,2]
[341307634,1730749831665,-450.0,0.00029,2]
[341307635,1730749831675,-311.28,0.00029062,120]
[341307636,1730749831684,-150.0,0.00029117,7]
[341307637,1730749831694,-250.0,0.00029168,2]
[341307638,1730749831704,-181.57,0.00029247,2]
[341307639,1730749831712,-158.25,0.00029307,2]
[341307640,1730749831722,-497.07,0.00029451,2]
[341307641,1730749831732,-402.25,0.00029461,30]
[341307642,1730749831741,-200.0,0.00029666,2]
[341307643,1730749831751,-171.39,0.00029701,2]
[341307644,1730749831760,-23900.0,0.00029989,2]
[341307645,1730749831770,-150.0,0.00030248,2]
[341307646,1730749831781,-1000.0,0.0003033,2]
[341307647,1730749831791,-250.0,0.00030531,2]
[341307648,1730749831801,-200.0,0.00030588,2]
[341307649,1730749831812,-483.0,0.00030613,30]
[341307650,1730749831821,-497.07,0.00031715,2]
[341307652,1730749831830,-402.25,0.00032045,30]
[341307654,1730749831840,-500.0,0.000321,30]
[341307656,1730749831849,-500.0,0.000321,30]
[341307658,1730749831860,-500.0,0.000321,30]
[341307660,1730749831869,-500.0,0.000321,30]
[341307662,1730749831880,-500.0,0.000321,30]
[341307664,1730749831890,-500.0,0.000321,30]
[341307666,1730749831900,-500.0,0.000321,30]
[341307668,1730749831909,-500.0,0.000321,30]
[341307669,1730749831918,-500.0,0.000321,30]
[341307671,1730749831927,-500.0,0.000321,30]
[341307673,1730749831936,-500.0,0.000321,30]
[341307676,1730749831946,-165.33,0.00032417,2]
[341307678,1730749831958,-7327.7435,0.00032676,2]
[341307680,1730749831967,-3830.548,0.00032676,2]
[341307682,1730749831978,-311.28,0.00032695,120]
[341307684,1730749831987,-351.87,0.00032766,10]
[341307686,1730749831996,-18799.1646,0.00032776,2]
[341307688,1730749832005,-299.35382095,0.00032776,2]
[341307690,1730749832016,-1006.519689,0.00032776,2]
[341307692,1730749832027,-5076.00579005,0.00032776,2]
[341307694,1730749832037,-786.2575,0.00032776,2]
[341307696,1730749832046,-8787.3039,0.00032776,2]
[341307698,1730749832055,-2500.0,0.00032776,2]
[341307700,1730749832064,-2102.934,0.00032776,2]
[341307702,1730749832076,-6907.82926805,0.00032776,15]
[341307705,1730749832087,-1109.55304057,0.00032776,2]
[341307707,1730749832096,-219.13,0.00032866,2]
[341307708,1730749832105,-422.25,0.00032866,10]
[341307710,1730749832114,-500.0,0.00032875,2]
[341307712,1730749832123,-458.1325151,0.00032875,2]
[341307714,1730749832132,-200.68956344,0.00032876,2]
[341307716,1730749832141,-494.51274855,0.00032876,2]
[341307718,1730749832150,-500.0,0.00032876,2]
[341307720,1730749832160,-501.62265085,0.00032876,2]
[341307722,1730749832170,-500.0,0.00032876,2]
[341307724,1730749832179,-500.0,0.00032876,2]
[341307726,1730749832189,-500.0,0.00032876,2]
[341307728,1730749832198,-184.07810934,0.00032876,2]
[341307730,1730749832207,-500.0,0.00032876,2]
[341307732,1730749832216,-541.79,0.00032876,2]
[341307734,1730749832226,-500.0,0.00032876,2]
[341307737,1730749832236,-500.0,0.00032876,2]
[341307739,1730749832245,-500.0,0.00032876,2]
[341307740,1730749832255,-500.0,0.00032876,2]
[341307743,1730749832265,-500.0,0.00032876,2]
[341307745,1730749832274,-500.0,0.00032876,2]
[341307747,1730749832284,-500.0,0.00032876,2]
[341307749,1730749832293,-500.0,0.00032876,2]
[341307750,1730749832302,-500.0,0.00032876,2]
[341307752,1730749832311,-500.0,0.00032876,2]
[341307754,1730749832321,-500.0,0.00032876,2]
[341307757,1730749832332,-176.33600338,0.00032876,2]
[341307759,1730749832342,-500.0,0.00032876,2]
[341307761,1730749832351,-500.0,0.00032876,2]
[341307763,1730749832361,-500.0,0.00032876,2]
[341307765,1730749832371,-500.0,0.00032876,2]
[341307767,1730749832384,-500.0,0.00032876,2]
[341307769,1730749832395,-500.0,0.00032876,2]
[341307771,1730749832405,-512.82,0.00032876,2]